{"text_format":"3","workbook":"xlsx","n_sheets":1,"sheets":["стр.1_3"],"not_rendered":{"external_links":1,"defined_names":4},"read":"whole","date_system":"1900"}

{"sheet":"стр.1_3","index":0,"n_rows":34,"n_cols":132,"rows_kept":34,"merged":[[1,66,1,116],[8,0,8,116],[9,0,9,116],[10,36,10,102],[11,36,11,102],[12,44,12,55],[14,0,16,52],[14,53,16,71],[14,72,14,131],[15,72,15,101],[15,102,15,131],[16,72,16,86],[16,87,16,101],[16,102,16,116],[16,117,16,131],[17,0,17,7],[17,8,17,52],[17,53,17,71],[17,72,17,86],[17,87,17,101],[17,102,17,116],[17,117,17,131],[18,0,18,7],[18,8,18,52],[18,53,18,71],[18,72,18,86],[18,87,18,101],[18,102,18,116],[18,117,18,131],[19,0,19,7],[19,8,19,52],[19,53,19,71],[19,72,19,86],[19,87,19,101],[19,102,19,116],[19,117,19,131],[20,0,20,7],[20,8,20,52],[20,53,20,71],[20,72,20,86],[20,87,20,101],[20,102,20,116],[20,117,20,131],[21,0,21,7],[21,8,21,52],[21,53,21,71],[21,72,21,86],[21,87,21,101],[21,102,21,116],[21,117,21,131],[22,0,22,7],[22,8,22,52],[22,53,22,71],[22,72,22,86],[22,87,22,101],[22,102,22,116],[22,117,22,131],[23,0,23,7],[23,8,23,52],[23,53,23,71],[23,72,23,86],[23,87,23,101],[23,102,23,116],[23,117,23,131],[24,0,24,7],[24,8,24,52],[24,53,24,71],[24,72,24,86],[24,87,24,101],[24,102,24,116],[24,117,24,131],[26,0,26,116]]}
[{"$nulls":66},"Приложение № 3"]
[{"$nulls":66},"к стандартам раскрытия информации субъектами оптового и розничных рынков электрической энергии"]
[]
[{"$nulls":66},"(в ред. Постановления Правительства РФ"]
[{"$nulls":66},"от 17.09.2015 № 987)"]
[]
[{"$nulls":116},"(форма)",{"$nulls":14},"(форма)"]
[]
["СТАНДАРТИЗИРОВАННЫЕ ТАРИФНЫЕ СТАВКИ"]
["для расчета платы за технологическое присоединение\nк территориальным распределительным сетям на уровне\nнапряжения ниже 35 кВ и присоединяемой мощностью "]
[{"$nulls":35},"менее 8900 кВт ","ООО «НЭСК»"]
[{"$nulls":36},"(наименование сетевой организации)"]
[{"$nulls":39},"на",{"$nulls":4},"2017",{"$nulls":11}," год"]
[]
["Наименование стандартизированных \nтарифных ставок",{"$nulls":52},"Единица измерения",{"$nulls":18},"Стандартизированные тарифные ставки"]
[{"$nulls":72},"по постоянной схеме",{"$nulls":29},"по \nвременной схеме"]
[{"$nulls":72},"Уровень напряжения в точке присоединения - 0,4 кВ",{"$nulls":14},"Уровень напряжения в точке присоединения - 6-10 кВ",{"$nulls":14},"Уровень напряжения в точке присоединения - 0,4 кВ",{"$nulls":14},"Уровень напряжения в точке присоединения - 6-10 кВ"]
["С1",{"$nulls":7},"Стандартизированная тарифная ставка на покрытие расходов на технологическое присоединение энергопринимающих устройств потребителей электрической энергии, объектов электросетевого хозяйства, принадлежащих сетевым организациям и иным лицам, по мероприятиям, указанным в пункте 16 методических указаний по определению размера платы за технологическое присоединение к электрическим сетям, утвержденных Федеральной службой по тарифам, за исключением подпунктов \"б\" и \"в\" пункта 16, в расчете на 1 кВт максимальной мощности",{"$nulls":44},"рублей/кВт",{"$nulls":18},{"$f":"SUM(BU19:CI25)","v":{"v":557.5899999999999,"d":"557.59"}},{"$nulls":14},{"$f":"SUM(CJ19:CX25)","v":330.01},{"$nulls":14},{"$f":"SUM(CY19:DM25)","v":{"v":557.5899999999999,"d":"557.59"}},{"$nulls":14},{"$f":"SUM(DN19:EB25)","v":330.01}]
["С1.1",{"$nulls":7},"Стандартизированная тарифная ставка на покрытие расходов на подготовку и выдачу сетевой организацией технических условий заявителю",{"$nulls":44},"рублей/кВт",{"$nulls":18},{"$f":"'[1]ООО \"НЭСК\" ставки'!$B$6","v":102.62},{"$nulls":14},{"$f":"'[1]ООО \"НЭСК\" ставки'!$C$6","v":60.74},{"$nulls":14},{"$f":"BU19","v":102.62},{"$nulls":14},{"$f":"CJ19","v":60.74}]
["С1.2",{"$nulls":7},"Стандартизированная тарифная ставка на покрытие расходов на проверку сетевой организацией выполнения заявителем технических условий",{"$nulls":44},"рублей/км",{"$nulls":18},{"$f":"'[1]ООО \"НЭСК\" ставки'!$B$9","v":164.42},{"$nulls":14},{"$f":"'[1]ООО \"НЭСК\" ставки'!$C$9","v":97.31},{"$nulls":14},{"$f":"BU20","v":164.42},{"$nulls":14},{"$f":"CJ20","v":97.31}]
["С1.3",{"$nulls":7},"Стандартизированная тарифная ставка на покрытие расходов на участие сетевой организации в осмотре должностным лицом органа федерального государственного энергетического надзора присоединяемых устройств заявителя",{"$nulls":44},"рублей/км",{"$nulls":18},{"v":0,"d":"0.00"},{"$nulls":14},{"v":0,"d":"0.00"},{"$nulls":14},{"v":0,"d":"0.00"},{"$nulls":14},{"v":0,"d":"0.00"}]
["С1.4",{"$nulls":7},"Стандартизированная тарифная ставка на покрытие расходов на осуществление сетевой организацией фактического присоединения объектов заявителя к электрическим сетям и включение коммутационного аппарата (фиксация коммутационного аппарата в положении \"включено\")",{"$nulls":44},"рублей/кВт",{"$nulls":18},{"$f":"'[1]ООО \"НЭСК\" ставки'!$B$11","v":290.55},{"$nulls":14},{"$f":"'[1]ООО \"НЭСК\" ставки'!$C$11","v":171.96},{"$nulls":14},290.55,{"$nulls":14},171.96]
["С2,i *",{"$nulls":7},"Стандартизированная тарифная ставка на покрытие расходов сетевой организации на строительство воздушных линий электропередачи \nна i-м уровне напряжения согласно приложению № 1 к методическим указаниям по определению размера платы за технологическое присоединение к электрическим сетям, утвержденным Федеральной службой по тарифам, в расчете на 1 км линий электропередачи",{"$nulls":44},"рублей/км",{"$nulls":18},"-",{"$nulls":14},"-",{"$nulls":14},"-",{"$nulls":14},"-"]
["С3,i *",{"$nulls":7},"Стандартизированная тарифная ставка на покрытие расходов сетевой организации на строительство кабельных линий электропередачи \nна i-м уровне напряжения согласно приложению № 1 к методическим указаниям по определению размера платы за технологическое присоединение к электрическим сетям, утвержденным Федеральной службой по тарифам, в расчете на 1 км линий электропередачи",{"$nulls":44},"рублей/км",{"$nulls":18},"-",{"$nulls":14},"-",{"$nulls":14},"-",{"$nulls":14},"-"]
["С4,i *",{"$nulls":7},"Стандартизированная тарифная ставка на покрытие расходов сетевой организации на строительство подстанций согласно приложению \n№ 1 к методическим указаниям по определению размера платы за технологическое присоединение к электрическим сетям, утвержденным Федеральной службой по тарифам, \nна i-м уровне напряжения",{"$nulls":44},"рублей/кВт",{"$nulls":18},"-",{"$nulls":14},"-",{"$nulls":14},"-",{"$nulls":14},"-"]
[]
["_____*_Ставки платы С2,i,  С3,i и С4,i  за технологическое присоединение к электрическим сетям дифференцируются по виду используемого материала, способу выполнения работ, категориям потребителей, уровням напряжения и (или) объему присоединяемой максимальной мощности."]
[]
[]
[]
[]
[]
[]
["Генеральный директор ",{"$nulls":85},"А.Б. Заботин"]